[Event "26th OIBM 2023"]
[Site "Gmund am Tegernsee"]
[Date "2023.11.03"]
[Round "7.23"]
[White "Womacka, Mathias"]
[Black "Arnhold, Steffi"]
[Result "0-1"]
[ECO "B41"]
[WhiteElo "2371"]
[BlackElo "2142"]
[Annotator "RC"]
[PlyCount "88"]
[EventDate "2023.10.04"]
[EventType "swiss"]
[EventCountry "GER"]
[SourceTitle "playchess.com"]
[Source "ChessBase"]
[SourceQuality "1"]
[TimeControl "40/5400+30:1800+30"]

1. e4 {[%emt 0:00:02]} c5 {[%emt 0:00:06]} 2. Nf3 {[%emt 0:00:09]} e6 {[%emt 0:00:08]} 3. d4 {[%emt 0:00:11]} cxd4 {[%emt 0:00:06]} 4. Nxd4 {[%emt 0:00:04]} a6 {[%emt 0:00:06]} 5. c4 {[%emt 0:00:39]} Qc7 {[%emt 0:00:28]} 6. Nc3 {[%emt 0:00:19]} Nf6 {[%emt 0:00:15]} 7. Be2 {[%emt 0:00:29]} d6 {[%emt 0:00:42]} 8. O-O {[%emt 0:01:11]} Be7 {[%emt 0:01:18]} 9. Be3 {[%emt 0:00:38]} Nbd7 {[%emt 0:01:01]} 10. Qd2 {[%emt 0:01:37]} b6 {[%emt 0:00:30]} 11. f3 {[%emt 0:01:49]} Bb7 {[%emt 0:00:21]} 12. Rfc1 {[%emt 0:01:11]} O-O {[%emt 0:04:59]} 13. a4 {[%emt 0:01:37]} Kh8 {[%emt 0:17:47]} 14. a5 {[%emt 0:02:11]} Rg8 {[%emt 0:02:23]} 15. axb6 {[%emt 0:04:53]} Nxb6 {[%emt 0:00:59]} 16. Nb3 {[%emt 0:00:07]} Rad8 {[%emt 0:06:21]} 17. Nd5 {[%emt 0:03:48]} Nbxd5 {[%emt 0:05:52]} 18. cxd5 {[%emt 0:00:55]} Qd7 {[%emt 0:00:53]} 19. Na5 {[%emt 0:07:54]} exd5 {[%emt 0:04:28]} 20. Nxb7 {[%emt 0:00:48]} Qxb7 {[%emt 0:00:08]} 21. Bxa6 {[%emt 0:00:10]} Qb8 {[%emt 0:01:00]} 22. exd5 {[%emt 0:00:29]} Nd7 {[%emt 0:02:09]} 23. b4 {[%emt 0:26:47]} Bf6 {[%emt 0:02:50]} 24. Ra5 {[%emt 0:11:31]} Rge8 {[%emt 0:07:24]} 25. Bb5 {[%emt 0:02:11]} h6 {[%emt 0:15:34]} 26. Ba7 {[%emt 0:03:23]} Qb7 {[%emt 0:00:07]} 27. Bc6 {[%emt 0:00:25]} Qc7 {[%emt 0:06:06]} 28. Bf2 {[%emt 0:00:52]} Re7 {[%emt 0:05:27]} 29. Ra7 {[%emt 0:02:14]} Qb8 {[%emt 0:00:17]} 30. Rb7 {[%emt 0:12:46]} Qc8 {[%emt 0:00:13]} 31. b5 {[%emt 0:00:06]} Nc5 {[%emt 0:01:16]} 32. Rxe7 {[%emt 0:00:10]} Bxe7 {[%emt 0:00:25]} 33. Bd4 {[%emt 0:00:12]} Bg5 {[%emt 0:01:32]} 34. f4 {[%emt 0:03:59]} Nb3 {[%emt 0:03:32]} 35. Qe3 {[%emt 0:00:06]} Nxc1 {[%emt 0:00:27]} 36. fxg5 {[%emt 0:00:12]} Qg4 {[%emt 0:00:33]} 37. Bxg7+ {[%emt 0:03:54]} Kxg7 {[%emt 0:00:08]} 38. gxh6+ {[%emt 0:00:05]} Kh7 {[%emt 0:00:27]} 39. Qxc1 {[%emt 0:00:06]} Qd4+ {[%emt 0:00:54]} 40. Kh1 {[%emt 0:00:15]} Rg8 {[%emt 0:02:20]} 41. h3 {[%emt 0:31:34]} Rg3 {[%emt 0:09:46]} 42. Qg1 {[%emt 0:00:00]} Qe4 {[%emt 0:01:57]} 43. Qh2 {[%emt 0:00:00]} Rb3 {[%emt 0:06:55]} 44. Qxd6 {[%emt 0:00:00]} Rxh3+ {[%emt 0:00:08]} 0-1

[Event "26th OIBM 2023"]
[Site "Gmund am Tegernsee"]
[Date "2023.11.03"]
[Round "7.24"]
[White "de Francesco, Klaus"]
[Black "Weber, Ulrich"]
[Result "1-0"]
[ECO "B07"]
[WhiteElo "2140"]
[BlackElo "2349"]
[Annotator "RC"]
[PlyCount "73"]
[EventDate "2023.10.04"]
[EventType "swiss"]
[EventCountry "GER"]
[SourceTitle "playchess.com"]
[Source "ChessBase"]
[SourceQuality "1"]
[TimeControl "40/5400+30:1800+30"]

1. e4 {[%emt 0:00:03]} c5 {[%emt 0:00:10]} 2. c3 {[%emt 0:00:07]} d6 {[%emt 0:02:39]} 3. d4 {[%emt 0:00:13]} Nf6 {[%emt 0:00:05]} 4. Bd3 {[%emt 1:32:07]} g6 {[%emt 0:00:24]} 5. h3 {[%emt 0:00:00]} Bg7 {[%emt 0:00:07]} 6. Nf3 {[%emt 0:00:00]} O-O {[%emt 0:00:28]} 7. O-O {[%emt 0:00:00]} Qc7 {[%emt 0:05:39]} 8. Re1 {[%emt 0:00:00]} Nfd7 {[%emt 0:01:13]} 9. a4 {[%emt 0:00:00]} Nc6 {[%emt 0:10:20]} 10. Bf1 {[%emt 0:00:00]} Re8 {[%emt 0:23:11]} 11. Na3 {[%emt 0:00:00]} a6 {[%emt 0:00:38]} 12. Nc4 {[%emt 0:00:00]} Nb6 {[%emt 0:20:46]} 13. dxc5 {[%emt 0:00:00]} dxc5 {[%emt 0:00:13]} 14. Be3 {[%emt 0:00:00]} Nxc4 {[%emt 0:01:08]} 15. Bxc4 {[%emt 0:00:00]} Na5 {[%emt 0:00:23]} 16. Ba2 {[%emt 0:00:00]} c4 {[%emt 0:02:05]} 17. e5 {[%emt 0:00:00]} Rd8 {[%emt 0:01:09]} 18. Qe2 {[%emt 0:07:00]} Bf5 {[%emt 0:00:09]} 19. Bd4 {[%emt 0:00:00]} b5 {[%emt 0:08:49]} 20. Qe3 {[%emt 0:00:00]} Rdb8 {[%emt 0:01:16]} 21. g4 {[%emt 0:00:00]} Bc8 {[%emt 0:01:31]} 22. Ng5 {[%emt 0:00:00]} Nc6 {[%emt 0:05:35]} 23. e6 {[%emt 0:00:00]} f6 {[%emt 0:00:14]} 24. Nf3 {[%emt 0:00:00]} Nd8 {[%emt 0:01:17]} 25. Bb1 {[%emt 0:00:00]} a5 {[%emt 0:02:46]} 26. Be4 {[%emt 0:00:00]} Ra6 {[%emt 0:00:39]} 27. Rad1 {[%emt 0:00:00]} Kh8 {[%emt 0:02:55]} 28. Ba7 {[%emt 0:00:00]} Rxa7 {[%emt 0:02:37]} 29. Rxd8+ {[%emt 0:00:00]} Qxd8 {[%emt 0:00:01]} 30. Qxa7 {[%emt 0:00:00]} Bxe6 {[%emt 0:02:45]} 31. Bc6 {[%emt 0:00:00]} Bg8 {[%emt 0:00:27]} 32. Rxe7 {[%emt 0:00:00]} Qd6 {[%emt 0:01:58]} 33. axb5 {[%emt 0:00:00]} Bf8 {[%emt 0:00:07]} 34. Rd7 {[%emt 0:00:00]} Qf4 {[%emt 0:00:05]} 35. Qd4 {[%emt 0:00:00]} Qc1+ {[%emt 0:00:23]} 36. Kg2 {[%emt 0:00:00]} Bg7 {[%emt 0:00:01]} 37. Rd8 {[%emt 0:00:00]} 1-0

[Event "26th OIBM 2023"]
[Site "Gmund am Tegernsee"]
[Date "2023.11.03"]
[Round "7.25"]
[White "Reimann, Sebastian"]
[Black "Sieglen, Joachim"]
[Result "1-0"]
[ECO "C15"]
[WhiteElo "2342"]
[BlackElo "2110"]
[Annotator "RC"]
[PlyCount "98"]
[EventDate "2023.10.04"]
[EventType "swiss"]
[EventCountry "GER"]
[SourceTitle "playchess.com"]
[Source "ChessBase"]
[SourceQuality "1"]
[TimeControl "40/5400+30:1800+30"]

1. e4 {[%emt 0:00:39]} e6 {[%emt 0:00:05]} 2. d4 {[%emt 0:00:42]} d5 {[%emt 0:00:06]} 3. Nc3 {[%emt 0:00:21]} Bb4 {[%emt 0:00:06]} 4. Nge2 {[%emt 0:02:52]} Nc6 {[%emt 0:03:09]} 5. exd5 {[%emt 0:00:45]} exd5 {[%emt 0:00:51]} 6. a3 {[%emt 0:00:44]} Ba5 {[%emt 0:00:11]} 7. b4 {[%emt 0:00:38]} Bb6 {[%emt 0:00:05]} 8. Na4 {[%emt 0:00:16]} Qe7 {[%emt 0:02:12]} 9. c3 {[%emt 0:01:32]} Nf6 {[%emt 0:06:22]} 10. f3 {[%emt 0:02:35]} h6 {[%emt 0:08:34]} 11. Kf2 {[%emt 0:03:55]} O-O {[%emt 0:02:01]} 12. Ng3 {[%emt 0:05:01]} Qd6 {[%emt 0:01:34]} 13. Nxb6 {[%emt 0:07:43]} axb6 {[%emt 0:00:14]} 14. Qd2 {[%emt 0:03:49]} Ne7 {[%emt 0:05:39]} 15. a4 {[%emt 0:06:04]} Be6 {[%emt 0:10:55]} 16. Bd3 {[%emt 0:03:27]} Qd7 {[%emt 0:03:40]} 17. Bc2 {[%emt 0:01:56]} Rfc8 {[%emt 0:12:21]} 18. Qd3 {[%emt 0:03:18]} Ng6 {[%emt 0:02:07]} 19. Be3 {[%emt 0:01:15]} Ne8 {[%emt 0:08:20]} 20. Nh5 {[%emt 0:02:33]} Nd6 {[%emt 0:02:35]} 21. Bxh6 {[%emt 0:03:26]} Bf5 {[%emt 0:01:50]} 22. Qd2 {[%emt 0:04:31]} Bxc2 {[%emt 0:00:07]} 23. Qxc2 {[%emt 0:01:07]} Qf5 {[%emt 0:00:38]} 24. Qxf5 {[%emt 0:00:10]} Nxf5 {[%emt 0:00:02]} 25. Bd2 {[%emt 0:02:50]} Ra7 {[%emt 0:00:12]} 26. Nf4 {[%emt 0:01:15]} c6 {[%emt 0:05:48]} 27. Rhe1 {[%emt 0:04:22]} Rca8 {[%emt 0:02:55]} 28. Nxg6 {[%emt 0:00:39]} fxg6 {[%emt 0:00:02]} 29. g4 {[%emt 0:06:13]} Nd6 {[%emt 0:00:06]} 30. Bf4 {[%emt 0:00:25]} Nc4 {[%emt 0:00:43]} 31. Re7 {[%emt 0:00:32]} Rf8 {[%emt 0:01:51]} 32. Kg3 {[%emt 0:03:09]} Rf7 {[%emt 0:00:22]} 33. Re8+ {[%emt 0:00:12]} Rf8 {[%emt 0:00:18]} 34. Rae1 {[%emt 0:02:14]} Rxa4 {[%emt 0:01:15]} 35. R1e7 {[%emt 0:00:16]} Ra3 {[%emt 0:03:10]} 36. Rxf8+ {[%emt 0:00:14]} Kxf8 {[%emt 0:00:02]} 37. Rxb7 {[%emt 0:00:12]} Rxc3 {[%emt 0:00:15]} 38. Rc7 {[%emt 0:00:16]} Rd3 {[%emt 0:14:40]} 39. Rxc6 {[%emt 0:01:28]} Rxd4 {[%emt 0:00:49]} 40. Rxg6 {[%emt 0:00:50]} Rd3 {[%emt 0:02:26]} 41. Rc6 {[%emt 0:30:33]} Kf7 {[%emt 0:06:09]} 42. h4 {[%emt 0:00:00]} Rc3 {[%emt 0:01:40]} 43. Rc7+ {[%emt 0:00:00]} Kf6 {[%emt 0:00:48]} 44. g5+ {[%emt 0:00:00]} Ke6 {[%emt 0:05:44]} 45. Rxg7 {[%emt 0:00:00]} d4 {[%emt 0:00:04]} 46. h5 {[%emt 0:00:00]} d3 {[%emt 0:00:07]} 47. h6 {[%emt 0:00:00]} d2 {[%emt 0:00:05]} 48. Bxd2 {[%emt 0:00:00]} Nxd2 {[%emt 0:00:03]} 49. h7 {[%emt 0:00:00]} Kd5 {[%emt 0:21:42]} 1-0

[Event "26th OIBM 2023"]
[Site "Gmund am Tegernsee"]
[Date "2023.11.03"]
[Round "7.26"]
[White "Zude, Arno"]
[Black "Ernst, Robert"]
[Result "1/2-1/2"]
[ECO "B48"]
[WhiteElo "2333"]
[BlackElo "2093"]
[Annotator "RC"]
[PlyCount "72"]
[EventDate "2023.10.04"]
[EventType "swiss"]
[EventCountry "GER"]
[SourceTitle "playchess.com"]
[Source "ChessBase"]
[SourceQuality "1"]
[TimeControl "40/5400+30:1800+30"]

1. e4 {[%emt 0:00:03]} c5 {[%emt 0:00:09]} 2. Nf3 {[%emt 0:00:07]} e6 {[%emt 0:00:08]} 3. d4 {[%emt 0:00:05]} cxd4 {[%emt 0:00:09]} 4. Nxd4 {[%emt 0:00:06]} Nc6 {[%emt 0:00:11]} 5. Nc3 {[%emt 0:00:07]} Qc7 {[%emt 0:00:08]} 6. Be3 {[%emt 0:00:24]} a6 {[%emt 0:00:13]} 7. Qd2 {[%emt 0:00:15]} Nf6 {[%emt 0:00:41]} 8. O-O-O {[%emt 0:00:18]} Be7 {[%emt 0:00:27]} 9. f3 {[%emt 0:00:23]} b5 {[%emt 0:00:24]} 10. Nxc6 {[%emt 0:00:22]} dxc6 {[%emt 0:00:12]} 11. g4 {[%emt 0:00:12]} O-O {[%emt 0:02:31]} 12. Qf2 {[%emt 0:01:05]} e5 {[%emt 0:06:58]} 13. h4 {[%emt 0:00:59]} Rd8 {[%emt 0:11:50]} 14. Rxd8+ {[%emt 0:01:14]} Qxd8 {[%emt 0:01:42]} 15. Bh3 {[%emt 0:00:22]} Ne8 {[%emt 0:01:07]} 16. Rd1 {[%emt 0:13:31]} Qc7 {[%emt 0:01:19]} 17. Qg3 {[%emt 0:02:22]} Be6 {[%emt 0:10:16]} 18. g5 {[%emt 0:06:37]} Bxh3 {[%emt 0:01:41]} 19. Qxh3 {[%emt 0:00:03]} Nd6 {[%emt 0:08:46]} 20. Bc5 {[%emt 0:09:13]} Rd8 {[%emt 0:05:56]} 21. Qg3 {[%emt 0:05:11]} Nc4 {[%emt 0:07:52]} 22. Qf2 {[%emt 0:25:48]} f6 {[%emt 0:19:07]} 23. gxf6 {[%emt 0:04:35]} Rxd1+ {[%emt 0:01:17]} 24. Nxd1 {[%emt 0:00:27]} Bxc5 {[%emt 0:00:28]} 25. Qxc5 {[%emt 0:00:08]} Qd8 {[%emt 0:01:02]} 26. Qf2 {[%emt 0:04:21]} Qxf6 {[%emt 0:00:07]} 27. c3 {[%emt 0:00:15]} Kf7 {[%emt 0:06:10]} 28. b3 {[%emt 0:01:12]} Nd6 {[%emt 0:00:56]} 29. Qg3 {[%emt 0:05:11]} Qf4+ {[%emt 0:03:31]} 30. Qxf4+ {[%emt 0:00:10]} exf4 {[%emt 0:00:01]} 31. Nf2 {[%emt 0:04:18]} Kg6 {[%emt 0:00:16]} 32. Nh3 {[%emt 0:01:32]} Kh5 {[%emt 0:00:05]} 33. Nxf4+ {[%emt 0:00:08]} Kxh4 {[%emt 0:00:04]} 34. Kd2 {[%emt 0:07:01]} g5 {[%emt 0:00:08]} 35. Ne2 {[%emt 0:03:54]} g4 {[%emt 0:00:14]} 36. Ke3 {[%emt 0:00:59]} gxf3 {[%emt 0:12:24]} 1/2-1/2

[Event "26th OIBM 2023"]
[Site "Gmund am Tegernsee"]
[Date "2023.11.03"]
[Round "7.27"]
[White "Mai, Philipp"]
[Black "Hofmann, Lorenz"]
[Result "1-0"]
[ECO "C42"]
[WhiteElo "2313"]
[BlackElo "2091"]
[Annotator "RC"]
[PlyCount "113"]
[EventDate "2023.10.04"]
[EventType "swiss"]
[EventCountry "GER"]
[SourceTitle "playchess.com"]
[Source "ChessBase"]
[SourceQuality "1"]
[TimeControl "40/5400+30:1800+30"]

1. e4 {[%emt 0:00:03]} e5 {[%emt 0:00:04]} 2. Nf3 {[%emt 0:00:07]} Nf6 {[%emt 0:00:04]} 3. Nxe5 {[%emt 0:00:27]} d6 {[%emt 0:00:03]} 4. Nf3 {[%emt 0:00:13]} Nxe4 {[%emt 0:00:05]} 5. Bd3 {[%emt 0:00:42]} Nf6 {[%emt 0:00:55]} 6. h3 {[%emt 0:01:45]} d5 {[%emt 0:01:53]} 7. O-O {[%emt 0:00:48]} Be7 {[%emt 0:00:18]} 8. c3 {[%emt 0:00:59]} h6 {[%emt 0:05:00]} 9. Bc2 {[%emt 0:01:05]} Nc6 {[%emt 0:03:45]} 10. d4 {[%emt 0:00:17]} O-O {[%emt 0:15:00]} 11. Bf4 {[%emt 0:09:47]} Ne4 {[%emt 0:13:03]} 12. Nbd2 {[%emt 0:04:28]} f5 {[%emt 0:07:11]} 13. Ne5 {[%emt 0:07:17]} Nxe5 {[%emt 0:07:23]} 14. Bxe5 {[%emt 0:00:25]} Bd6 {[%emt 0:04:55]} 15. Bxd6 {[%emt 0:22:45]} Qxd6 {[%emt 0:01:41]} 16. Re1 {[%emt 0:02:54]} Ng5 {[%emt 0:07:55]} 17. Nf3 {[%emt 0:07:09]} Bd7 {[%emt 0:03:30]} 18. Nxg5 {[%emt 0:08:41]} hxg5 {[%emt 0:00:05]} 19. Qh5 {[%emt 0:00:19]} Qf6 {[%emt 0:00:50]} 20. Re5 {[%emt 0:00:47]} g6 {[%emt 0:03:07]} 21. Qf3 {[%emt 0:01:55]} c6 {[%emt 0:00:12]} 22. Rae1 {[%emt 0:00:29]} Rae8 {[%emt 0:01:17]} 23. Qe3 {[%emt 0:06:15]} f4 {[%emt 0:03:13]} 24. Qe2 {[%emt 0:02:54]} Kf7 {[%emt 0:00:19]} 25. f3 {[%emt 0:00:21]} Re6 {[%emt 0:00:48]} 26. c4 {[%emt 0:05:01]} Rxe5 {[%emt 0:04:41]} 27. dxe5 {[%emt 0:00:19]} Qe6 {[%emt 0:00:04]} 28. Bb3 {[%emt 0:00:46]} Rd8 {[%emt 0:01:18]} 29. Rd1 {[%emt 0:03:01]} Bc8 {[%emt 0:02:48]} 30. cxd5 {[%emt 0:03:17]} cxd5 {[%emt 0:00:05]} 31. Rxd5 {[%emt 0:00:28]} Rxd5 {[%emt 0:00:14]} 32. Qe4 {[%emt 0:00:11]} Qb6+ {[%emt 0:04:45]} 33. Kh2 {[%emt 0:00:14]} Ke7 {[%emt 0:04:42]} 34. Bxd5 {[%emt 0:02:26]} Bf5 {[%emt 0:02:16]} 35. Qa4 {[%emt 0:03:43]} Qxb2 {[%emt 0:01:02]} 36. Qxa7 {[%emt 0:00:19]} Qxe5 {[%emt 0:01:13]} 37. Qxb7+ {[%emt 0:00:19]} Kd6 {[%emt 0:00:29]} 38. Qc6+ {[%emt 0:00:47]} Ke7 {[%emt 0:00:01]} 39. Qc5+ {[%emt 0:01:40]} Kd8 {[%emt 0:01:12]} 40. a4 {[%emt 0:01:46]} Qe1 {[%emt 0:01:19]} 41. Bc4 {[%emt 0:12:45]} Qg3+ {[%emt 0:04:41]} 42. Kg1 {[%emt 0:00:18]} Bxh3 {[%emt 0:13:03]} 43. Qf8+ {[%emt 0:07:15]} Kd7 {[%emt 0:01:56]} 44. Qg7+ {[%emt 0:04:59]} Kc6 {[%emt 0:01:31]} 45. Qxg6+ {[%emt 0:00:08]} Kc5 {[%emt 0:01:16]} 46. Bf1 {[%emt 0:00:10]} Kb4 {[%emt 0:03:23]} 47. Qe4+ {[%emt 0:00:24]} Ka5 {[%emt 0:02:31]} 48. Qc4 {[%emt 0:00:19]} Kb6 {[%emt 0:00:24]} 49. Qb5+ {[%emt 0:00:19]} Kc7 {[%emt 0:00:17]} 50. Qe5+ {[%emt 0:02:41]} Kb6 {[%emt 0:00:28]} 51. a5+ {[%emt 0:00:21]} Ka7 {[%emt 0:00:48]} 52. Qg7+ {[%emt 0:00:29]} Kb8 {[%emt 0:00:25]} 53. a6 {[%emt 0:00:39]} Bc8 {[%emt 0:00:38]} 54. a7+ {[%emt 0:00:06]} Ka8 {[%emt 0:07:24]} 55. Qc7 {[%emt 0:00:07]} Qxg2+ {[%emt 0:00:00]} 56. Bxg2 {[%emt 0:00:07]} Bb7 {[%emt 0:00:00]} 57. Qb8# {[%emt 0:10:44]} 1-0

[Event "26th OIBM 2023"]
[Site "Gmund am Tegernsee"]
[Date "2023.11.03"]
[Round "7.28"]
[White "Willim, Michael"]
[Black "Schuster, Karsten"]
[Result "1/2-1/2"]
[ECO "D45"]
[WhiteElo "2138"]
[BlackElo "2309"]
[Annotator "RC"]
[PlyCount "90"]
[EventDate "2023.10.04"]
[EventType "swiss"]
[EventCountry "GER"]
[SourceTitle "playchess.com"]
[Source "ChessBase"]
[SourceQuality "1"]
[TimeControl "40/5400+30:1800+30"]

1. c4 {[%emt 0:00:04]} c6 {[%emt 0:00:03]} 2. Nc3 {[%emt 0:00:14]} d5 {[%emt 0:00:04]} 3. e3 {[%emt 0:00:09]} Nf6 {[%emt 0:00:08]} 4. Nf3 {[%emt 0:00:20]} e6 {[%emt 0:00:04]} 5. d4 {[%emt 0:03:02]} Nbd7 {[%emt 0:01:36]} 6. Be2 {[%emt 0:00:25]} Bd6 {[%emt 0:00:47]} 7. O-O {[%emt 0:00:10]} O-O {[%emt 0:00:46]} 8. b3 {[%emt 0:00:07]} b6 {[%emt 0:00:37]} 9. Bb2 {[%emt 0:00:06]} Bb7 {[%emt 0:00:15]} 10. Rc1 {[%emt 0:05:43]} Qe7 {[%emt 0:03:36]} 11. Re1 {[%emt 0:02:11]} Rac8 {[%emt 0:02:05]} 12. Bd3 {[%emt 0:03:03]} c5 {[%emt 0:00:36]} 13. cxd5 {[%emt 0:01:35]} exd5 {[%emt 0:12:00]} 14. Ne2 {[%emt 0:06:56]} Ne4 {[%emt 0:06:35]} 15. Ng3 {[%emt 0:01:22]} f5 {[%emt 0:03:24]} 16. Qe2 {[%emt 0:17:04]} Rce8 {[%emt 0:04:48]} 17. Bb5 {[%emt 0:02:04]} Rd8 {[%emt 0:05:20]} 18. Red1 {[%emt 0:01:40]} g6 {[%emt 0:07:06]} 19. Bxd7 {[%emt 0:08:45]} Rxd7 {[%emt 0:03:37]} 20. Ne5 {[%emt 0:00:07]} Rc7 {[%emt 0:06:01]} 21. f4 {[%emt 0:03:54]} Nxg3 {[%emt 0:04:59]} 22. hxg3 {[%emt 0:00:07]} Bxe5 {[%emt 0:02:14]} 23. dxe5 {[%emt 0:01:06]} Qe6 {[%emt 0:00:20]} 24. b4 {[%emt 0:02:02]} Rfc8 {[%emt 0:07:35]} 25. Qd2 {[%emt 0:07:55]} h5 {[%emt 0:00:40]} 26. bxc5 {[%emt 0:01:25]} bxc5 {[%emt 0:01:37]} 27. Qa5 {[%emt 0:00:07]} Qb6 {[%emt 0:04:02]} 28. Qxb6 {[%emt 0:05:53]} axb6 {[%emt 0:00:04]} 29. Rb1 {[%emt 0:00:20]} Ra8 {[%emt 0:01:23]} 30. a3 {[%emt 0:00:37]} Bc6 {[%emt 0:02:56]} 31. Rdc1 {[%emt 0:01:26]} Kf7 {[%emt 0:03:55]} 32. Kh2 {[%emt 0:00:07]} Ra6 {[%emt 0:02:32]} 33. Rc3 {[%emt 0:03:07]} Ke6 {[%emt 0:02:00]} 34. Bc1 {[%emt 0:01:36]} Rb7 {[%emt 0:01:17]} 35. Kh3 {[%emt 0:03:34]} Ra4 {[%emt 0:02:13]} 36. Rcb3 {[%emt 0:01:56]} b5 {[%emt 0:00:55]} 37. Rc3 {[%emt 0:01:18]} Rc4 {[%emt 0:00:40]} 38. Rcb3 {[%emt 0:09:38]} Ra7 {[%emt 0:01:55]} 39. Kh4 {[%emt 0:00:59]} Raa4 {[%emt 0:00:57]} 40. Kg5 {[%emt 0:01:02]} Be8 {[%emt 0:01:36]} 41. R3b2 {[%emt 0:09:49]} Rc3 {[%emt 0:01:15]} 42. Rb3 {[%emt 0:03:26]} Rc2 {[%emt 0:00:58]} 43. R3b2 {[%emt 0:00:11]} Rac4 {[%emt 0:00:23]} 44. Bd2 {[%emt 0:00:25]} Rxb2 {[%emt 0:08:06]} 45. Rxb2 {[%emt 0:00:07]} Ra4 {[%emt 0:05:06]} 1/2-1/2

[Event "26th OIBM 2023"]
[Site "Gmund am Tegernsee"]
[Date "2023.11.03"]
[Round "7.29"]
[White "Linster, Philippe"]
[Black "Restorff, Felix"]
[Result "1-0"]
[ECO "E04"]
[WhiteElo "2303"]
[BlackElo "2087"]
[Annotator "RC"]
[PlyCount "49"]
[EventDate "2023.10.04"]
[EventType "swiss"]
[EventCountry "GER"]
[SourceTitle "playchess.com"]
[Source "ChessBase"]
[SourceQuality "1"]
[TimeControl "40/5400+30:1800+30"]

1. d4 {[%emt 0:00:03]} d5 {[%emt 0:00:17]} 2. c4 {[%emt 0:00:06]} e6 {[%emt 0:00:12]} 3. Nf3 {[%emt 0:00:12]} Nf6 {[%emt 0:00:22]} 4. g3 {[%emt 0:00:17]} dxc4 {[%emt 0:00:37]} 5. Bg2 {[%emt 0:00:18]} c5 {[%emt 0:00:31]} 6. O-O {[%emt 0:01:13]} Nc6 {[%emt 0:01:04]} 7. Qa4 {[%emt 0:01:41]} Bd7 {[%emt 0:00:34]} 8. Qxc4 {[%emt 0:00:10]} b5 {[%emt 0:00:24]} 9. Qc3 {[%emt 0:01:11]} b4 {[%emt 0:02:26]} 10. Qd3 {[%emt 0:02:01]} Rc8 {[%emt 0:00:54]} 11. dxc5 {[%emt 0:05:05]} Bxc5 {[%emt 0:00:56]} 12. Bg5 {[%emt 0:00:34]} h6 {[%emt 0:13:19]} 13. Bxf6 {[%emt 0:02:43]} Qxf6 {[%emt 0:00:21]} 14. Nbd2 {[%emt 0:01:49]} Ne5 {[%emt 0:09:10]} 15. Nxe5 {[%emt 0:03:08]} Qxe5 {[%emt 0:00:57]} 16. Rfd1 {[%emt 0:04:31]} Qb8 {[%emt 0:07:18]} 17. Nb3 {[%emt 0:18:59]} Bb5 {[%emt 0:03:18]} 18. Qe4 {[%emt 0:01:19]} Be7 {[%emt 0:16:57]} 19. Nd4 {[%emt 0:04:06]} Qb6 {[%emt 0:07:28]} 20. Qe5 {[%emt 0:06:59]} Bc5 {[%emt 0:07:31]} 21. Qxg7 {[%emt 0:01:19]} Ke7 {[%emt 0:00:35]} 22. e3 {[%emt 0:11:43]} Bd6 {[%emt 0:05:17]} 23. Qg4 {[%emt 0:04:40]} a5 {[%emt 0:06:52]} 24. Qh4+ {[%emt 0:03:53]} f6 {[%emt 0:01:55]} 25. Qg4 {[%emt 0:02:30]} 1-0

[Event "26th OIBM 2023"]
[Site "Gmund am Tegernsee"]
[Date "2023.11.03"]
[Round "7.30"]
[White "Heigermoser, Robert"]
[Black "Schneider, Jana"]
[Result "0-1"]
[ECO "C77"]
[WhiteElo "2133"]
[BlackElo "2285"]
[Annotator "RC"]
[PlyCount "132"]
[EventDate "2023.10.04"]
[EventType "swiss"]
[EventCountry "GER"]
[SourceTitle "playchess.com"]
[Source "ChessBase"]
[SourceQuality "1"]
[TimeControl "40/5400+30:1800+30"]

1. e4 {[%emt 0:00:04]} e5 {[%emt 0:00:11]} 2. Nf3 {[%emt 0:00:06]} Nc6 {[%emt 0:00:07]} 3. Bb5 {[%emt 0:00:07]} a6 {[%emt 0:00:06]} 4. Ba4 {[%emt 0:00:08]} Nf6 {[%emt 0:00:10]} 5. d3 {[%emt 0:00:12]} d6 {[%emt 0:00:28]} 6. c4 {[%emt 0:00:56]} g6 {[%emt 0:01:08]} 7. h3 {[%emt 0:00:30]} Bg7 {[%emt 0:00:23]} 8. O-O {[%emt 0:00:28]} O-O {[%emt 0:00:13]} 9. Nc3 {[%emt 0:00:40]} Nd7 {[%emt 0:04:17]} 10. Bg5 {[%emt 0:01:43]} f6 {[%emt 0:00:25]} 11. Be3 {[%emt 0:00:39]} Nc5 {[%emt 0:00:49]} 12. Bxc6 {[%emt 0:18:06]} bxc6 {[%emt 0:00:07]} 13. Bxc5 {[%emt 0:00:11]} dxc5 {[%emt 0:00:08]} 14. Qd2 {[%emt 0:00:56]} Qd6 {[%emt 0:04:12]} 15. Qe3 {[%emt 0:06:07]} Rd8 {[%emt 0:05:01]} 16. Rad1 {[%emt 0:06:01]} Be6 {[%emt 0:02:14]} 17. Na4 {[%emt 0:03:10]} Bf8 {[%emt 0:00:30]} 18. b3 {[%emt 0:06:22]} Rd7 {[%emt 0:02:19]} 19. Nh2 {[%emt 0:02:36]} Re8 {[%emt 0:05:49]} 20. Ng4 {[%emt 0:08:40]} Qe7 {[%emt 0:01:15]} 21. Qf3 {[%emt 0:07:07]} Bg7 {[%emt 0:00:33]} 22. Qe3 {[%emt 0:01:38]} Bf8 {[%emt 0:00:18]} 23. Qf3 {[%emt 0:04:55]} Bg7 {[%emt 0:00:25]} 24. Qe3 {[%emt 0:02:09]} Rd4 {[%emt 0:04:03]} 25. Nh2 {[%emt 0:03:58]} Bf8 {[%emt 0:02:05]} 26. Nf3 {[%emt 0:07:37]} Rd7 {[%emt 0:04:31]} 27. Rfe1 {[%emt 0:01:08]} Red8 {[%emt 0:02:16]} 28. Re2 {[%emt 0:02:58]} h5 {[%emt 0:02:46]} 29. Nh4 {[%emt 0:05:52]} Kh7 {[%emt 0:02:34]} 30. Qg3 {[%emt 0:00:40]} Qf7 {[%emt 0:02:41]} 31. Qe3 {[%emt 0:00:56]} Rd4 {[%emt 0:01:03]} 32. Rc2 {[%emt 0:03:16]} Qd7 {[%emt 0:05:20]} 33. Rc3 {[%emt 0:01:43]} Qe7 {[%emt 0:02:02]} 34. Nf3 {[%emt 0:02:07]} Bh6 {[%emt 0:02:03]} 35. Qe2 {[%emt 0:00:13]} R4d7 {[%emt 0:00:35]} 36. Kh2 {[%emt 0:00:23]} Bf7 {[%emt 0:03:52]} 37. g3 {[%emt 0:00:18]} Be6 {[%emt 0:03:00]} 38. Kg2 {[%emt 0:00:38]} Re8 {[%emt 0:04:37]} 39. Rc2 {[%emt 0:01:48]} Red8 {[%emt 0:06:07]} 40. Rc3 {[%emt 0:01:11]} Rg8 {[%emt 0:00:28]} 41. Rc2 {[%emt 0:08:16]} Rdd8 {[%emt 0:07:23]} 42. Qe1 {[%emt 0:04:03]} Bc8 {[%emt 0:01:01]} 43. Qa5 {[%emt 0:02:20]} Bf8 {[%emt 0:00:19]} 44. a3 {[%emt 0:02:09]} f5 {[%emt 0:02:55]} 45. h4 {[%emt 0:01:33]} Kh8 {[%emt 0:05:35]} 46. Ng5 {[%emt 0:02:21]} Rd4 {[%emt 0:02:31]} 47. Re2 {[%emt 0:04:20]} f4 {[%emt 0:03:20]} 48. gxf4 {[%emt 0:01:33]} exf4 {[%emt 0:01:53]} 49. f3 {[%emt 0:00:05]} Rg7 {[%emt 0:02:33]} 50. Rb2 {[%emt 0:01:13]} Qe5 {[%emt 0:00:28]} 51. Kh2 {[%emt 0:04:21]} Be7 {[%emt 0:02:49]} 52. Rg2 {[%emt 0:00:17]} Bxg5 {[%emt 0:02:18]} 53. Rxg5 {[%emt 0:00:17]} Qe6 {[%emt 0:00:06]} 54. Qxc5 {[%emt 0:00:31]} Qh3+ {[%emt 0:00:51]} 55. Kg1 {[%emt 0:00:10]} Qxh4 {[%emt 0:09:20]} 56. Rg2 {[%emt 0:01:05]} Qd8 {[%emt 0:01:27]} 57. Qxc6 {[%emt 0:02:38]} Bh3 {[%emt 0:02:24]} 58. Rh2 {[%emt 0:02:33]} Qh4 {[%emt 0:01:16]} 59. e5 {[%emt 0:00:37]} Rxd3 {[%emt 0:00:51]} 60. Rb1 {[%emt 0:00:57]} Rxb3 {[%emt 0:03:21]} 61. Rd1 {[%emt 0:00:23]} Qg3+ {[%emt 0:01:08]} 62. Kh1 {[%emt 0:00:05]} Rd3 {[%emt 0:00:35]} 63. Rg1 {[%emt 0:01:09]} Qxf3+ {[%emt 0:02:44]} 64. Qxf3 {[%emt 0:00:01]} Rxf3 {[%emt 0:00:07]} 65. Nc5 {[%emt 0:00:29]} Rxa3 {[%emt 0:01:18]} 66. e6 {[%emt 0:01:15]} Re3 {[%emt 0:00:38]} 0-1